Cogmind - Beta 9.6 @@@ ROGUE MODE // 2020.09.11 @ 21:54:59 Player: TheGreatBorealis Result: Destroyed by Y-45 Defender with Heavy Assault Rifle Performance ------------- Evolutions (2) 1000 Regions Visited (3) 600 Robots Destroyed (29) 145 Value Destroyed (598) 598 Prototype IDs (1) 20 Alien Tech Used (0) 0 Bonus (33) 33 TOTAL SCORE: 2396 Bonus ------- High Alert Combat Kills 33 Cogmind --------- Core Integrity 0/550 Matter 38/300 Energy 47/100 System Corruption 0% Temperature Cool (18) Movement Core (100) Ox1 Location -8/Materials Parts ------- > --- POWER (1) -------- (None) > --- PROPULSION (6) --- (None) > --- UTILITY (2) ------ Advanced Visual Processing Unit > --- WEAPON (2) ------- EM Pulse Cannon > --- INVENTORY (4) ---- Improved Ion Engine Peak State ------------ > --- POWER ------------ Improved Ion Engine > --- PROPULSION ------- Flight Unit Flight Unit > --- UTILITY ---------- Advanced Visual Processing Unit > --- WEAPON ----------- Enhanced Autogun Enhanced Autogun > --- INVENTORY -------- EM Pulse Cannon Missile Launcher [Rating: 15] Favorites ----------- Power Improved Ion Engine Engine Improved Ion Engine Propulsion Aluminum Leg Treads Light Treads Leg Aluminum Leg Flight Unit Flight Unit Utility Medium Storage Unit Device Tractor Beam Storage Medium Storage Unit Processor Advanced Visual Processing Unit Weapon Light Assault Rifle Energy Gun EM Pulse Gun Energy Cannon EM Pulse Cannon Ballistic Gun Light Assault Rifle Launcher Grenade Launcher Build | -11 -10 -9 -8 ------- Run | Scr Mat Mat Mat Slots Evolved 4 | . . 2 2 Power . | . . . . Propulsion 4 | . . 2 2 Utility . | . . . . Weapon . | . . . . Parts Attached 38 | 8 4 16 10 Power 4 | 1 1 1 1 Engine 4 | 1 1 1 1 Core . | . . . . Reactor . | . . . . Propulsion 15 | 2 1 9 3 Treads 5 | . . 5 . Leg 8 | 2 1 4 1 Wheel . | . . . . Hover . | . . . . Flight 2 | . . . 2 Utility 5 | 2 1 1 1 Device 1 | 1 . . . Storage 3 | 1 1 1 . Processor 1 | . . . 1 Hackware . | . . . . Protection . | . . . . Artifact . | . . . . Weapon 14 | 3 1 5 5 Energy Gun 3 | 2 . 1 . Energy Cannon 1 | . . . 1 Ballistic Gun 8 | 1 1 3 3 Ballistic Cannon . | . . . . Launcher 2 | . . 1 1 Special Weapon . | . . . . Impact Weapon . | . . . . Slashing Weapon . | . . . . Piercing Weapon . | . . . . Special Melee Weapon . | . . . . Unidentified Prototypes 1 | . . . 1 Parts Lost 15 | . . 9 6 Power 1 | . . 1 . Propulsion 5 | . . 2 3 Utility 1 | . . 1 . Weapon 8 | . . 5 3 Highest Loss Streak 6 | . . 6 2 Average Slot Usage (%) 73 | . 100 82 25 Engine 10 | . 14 9 5 Treads 3 | . . 8 . Leg 21 | . 28 29 1 Device 6 | . 14 4 . Storage 8 | . 14 10 . Processor 1 | . . . 7 Energy Gun 3 | . 6 4 . Ballistic Gun 15 | . 21 13 7 Naked Turns 53 | . . 37 16 Heaviest Build 21 | 11 18 21 13 Greatest Support 43 | 20 20 43 10 Greatest Overweight (x) 4 | . . . 4 Average Overweight (x) . | . . . . Largest Inventory Capacity 10 | 6 8 10 4 Average Capacity 6 | 5 7 7 4 Most Carried 8 | 4 8 8 4 Average Carried 5 | 2 6 5 2 Final Capacity 8 | 6 8 4 4 Final Carried 8 | 4 8 2 1 Class Distribution -------------------- 100% | Mutant Dominant Class ---------------- Mutant | -10/Materials Mutant | -9/Materials Mutant | -8/Materials Resources | -11 -10 -9 -8 ----------- Run | Scr Mat Mat Mat Matter Collected 489 | 281 73 96 39 Remotely 175 | 52 73 50 . Salvage Created 684 | 62 217 164 241 Parts 51 | 2 22 7 20 Haulers Intercepted . | . . . . Recyclers Shooed 1 | . . 1 . Parts Field Recycled . | . . . . Retrieved Matter . | . . . . Parts Self-Destructed . | . . . . Prevented . | . . . . Kills | -11 -10 -9 -8 ------- Run | Scr Mat Mat Mat Combat Hostiles Destroyed 26 | . 11 4 11 Melee 1 | . . 1 . Guns 20 | . 9 3 8 AOE 5 | . 2 . 3 Classes Destroyed 7 | 1 3 2 1 Worker 1 | . 1 . . Recycler 1 | 1 . . . Mechanic 1 | . . . 1 Swarmer 17 | . 9 1 7 Grunt 5 | . 2 1 2 Duelist 1 | . . 1 . Sentry 3 | . . 1 2 Best Kill Streak 9 | 1 4 2 9 Combat Bots Only 6 | . 3 2 6 Max Kills in Single Turn 3 | 1 3 1 2 Gunslinging 1 | . . . 1 Exploded 2 | . 2 . 1 Melee 1 | . . 1 . Uniques/NPCs Destroyed . | . . . . Combat | -11 -10 -9 -8 -------- Run | Scr Mat Mat Mat Damage Taken 2531 | . 292 1165 1074 Core 945 | . 23 366 556 Absorbed by Shields . | . . . . Core Remaining (%) 66 | 100 90 8 . Volleys Fired 86 | 1 20 22 43 Largest 2 | 2 2 2 2 Hottest 63 | 60 60 60 63 Shots Fired 131 | 2 40 40 49 Gun 125 | 2 40 39 44 Cannon 1 | . . . 1 Launcher 5 | . . 1 4 Special . | . . . . Kinetic 108 | 1 33 30 44 Thermal 9 | . . 9 . Explosive 5 | . . 1 4 Electromagnetic 9 | 1 7 . 1 Robot Hit Streak 14 | 1 12 14 6 Robot Miss Streak 3 | . 2 3 3 Penetration Max . | . . . . Secondary Targets 1 | . . . 1 Max Gunslinging Chain 1 | . . . 1 Shots Hit Robots 86 | 1 27 28 30 Core Hits 48 | 1 16 13 18 Critical Hits . | . . . . Critical Kills . | . . . . Critical Parts Destroyed . | . . . . Melee Attacks . | . . . . Impact . | . . . . Slashing . | . . . . Piercing . | . . . . Sneak Attacks . | . . . . Combat Hostiles . | . . . . Follow-up Attacks . | . . . . Damage Inflicted 1497 | 15 331 320 831 Guns 923 | 15 215 261 432 Cannons . | . . . . Explosions 557 | . 116 43 398 Melee . | . . . . Ramming 17 | . . 16 1 Kinetic 768 | . 159 177 432 Thermal 200 | . 116 84 . Explosive 441 | . . 43 398 Electromagnetic 71 | 15 56 . . Impact . | . . . . Slashing . | . . . . Piercing . | . . . . Highest Corruption . | . . . . Average Corruption . | . . . . Corruption Purged . | . . . . Overload Shots . | . . . . Overflow Damage 35 | . . . 35 Projectiles . | . . . . Explosions 35 | . . . 35 Melee . | . . . . Knockbacks . | . . . . Impact . | . . . . Kinetic . | . . . . Secondary . | . . . . Self-Inflicted Damage 85 | . 33 6 46 Shots 2 | . 1 . 1 Rammed 7 | . . 5 2 Targets Rammed 7 | . . 5 2 Kicked . | . . . . Crushed . | . . . . Highest Temperature 53 | 20 52 53 5 Average Temperature 12 | 15 9 18 3 Received Heat Transfer 510 | . 24 279 207 Siege Activations . | . . . . Robots Corrupted . | . . . . Combat Hostiles . | . . . . Parts Fried . | . . . . Impact Corruptions . | . . . . Robots Melted . | . . . . Combat Hostiles . | . . . . Parts Melted 2 | . . 2 . Heat Transferred 250 | . 50 200 . Parts Sabotaged . | . . . . Parts Stolen . | . . . . Parts Stripped . | . . . . Power Chain Reactions 1 | . 1 . . Missiles Intercepted . | . . . . Alert | -11 -10 -9 -8 ------- Run | Scr Mat Mat Mat Peak Influence 472 | 5 273 270 472 Average Influence 158 | . 144 165 222 Maximum Alert Level 2 | . 1 1 2 Low Security (%) 72 | 100 76 84 41 Level 1 24 | . 23 15 44 Level 2 3 | . . . 14 Level 3 . | . . . . Level 4 . | . . . . Level 5 . | . . . . High Security . | . . . . Max Security . | . . . . Squads Dispatched 6 | . . 3 3 Investigation . | . . . . Extermination . | . . . . Reinforcement 6 | . . 3 3 Assault . | . . . . Garrison . | . . . . Intercept . | . . . . Construction Impeded 1 | . . . 1 Haulers Reinforced . | . . . . Stealth | -11 -10 -9 -8 --------- Run | Scr Mat Mat Mat Distress Signals 4 | . 1 1 2 Communications Jammed . | . . . . Distress Signals . | . . . . Times Spotted 72 | . 16 30 26 Peak Tracking Total 15 | . 5 15 15 Tactical Retreats 8 | . 1 4 3 Traps | -11 -10 -9 -8 ------- Run | Scr Mat Mat Mat Traps Triggered . | . . . . Indirectly . | . . . . Trap Hack Attempts . | . . . . Triggered . | . . . . Disarmed . | . . . . Reprogrammed . | . . . . Reused . | . . . . Traps Extracted . | . . . . Installed . | . . . . Triggered . | . . . . Machines | -11 -10 -9 -8 ---------- Run | Scr Mat Mat Mat Machines Disabled 3 | . . 1 2 Max in Single Turn 1 | . . 1 1 Machines Sabotaged . | . . . . Garrisons Compromised . | . . . . Overloaded Fab Kills . | . . . . Fab Network Shutdowns . | . . . . Hacking | -11 -10 -9 -8 --------- Run | Scr Mat Mat Mat Machines Accessed 3 | . 1 1 1 Terminals 3 | . 1 1 1 Fabricators . | . . . . Repair Stations . | . . . . Recycling Units . | . . . . Scanalyzers . | . . . . Garrison Access . | . . . . Total Hacks 5 | . 2 2 1 Successful 2 | . . 1 1 Failed 3 | . 2 1 . Catastrophic . | . . . . Database Lockouts . | . . . . Manual 2 | . . 2 . Terminals 5 | . 2 2 1 Fabricators . | . . . . Repair Stations . | . . . . Recycling Units . | . . . . Scanalyzers . | . . . . Garrison Access . | . . . . Terminal Hacks 2 | . . 1 1 Locate Traps 1 | . . . 1 Recall Reinforcements 1 | . . 1 . Fabricator Hacks . | . . . . Repair Station Hacks . | . . . . Recycling Unit Hacks . | . . . . Scanalyzer . | . . . . Garrison Access Hacks . | . . . . Unauthorized Hacks . | . . . . Terminals . | . . . . Fabricators . | . . . . Repair Stations . | . . . . Recycling Units . | . . . . Scanalyzers . | . . . . Garrison Access . | . . . . Data Cores Recovered . | . . . . Used . | . . . . Hacking Detections 1 | . 1 . . Full Trace Events . | . . . . Feedback Events . | . . . . Feedback Blocked . | . . . . Robot Schematics Acquired . | . . . . Robots Built . | . . . . Matter . | . . . . Time . | . . . . Total Robot Build Rating . | . . . . Part Schematics Acquired . | . . . . Parts Built . | . . . . Matter . | . . . . Time . | . . . . Total Part Build Rating . | . . . . Parts Repaired . | . . . . Time . | . . . . Parts Recycled . | . . . . Recycled Matter . | . . . . Retrieved Matter . | . . . . Retrieved Components . | . . . . Parts Scanalyzed . | . . . . Part Schematics Acquired . | . . . . Parts Damaged . | . . . . Bothacking | -11 -10 -9 -8 ------------ Run | Scr Mat Mat Mat Used RIF Installer . | . . . . Robots Hacked . | . . . . Non-combat . | . . . . Combat . | . . . . Robot Hacks Applied . | . . . . Relay Couplers Released . | . . . . Robots Rewired . | . . . . Allies Hacked . | . . . . Hacks Repelled . | . . . . Allies | -11 -10 -9 -8 -------- Run | Scr Mat Mat Mat Total Allies . | . . . . Largest Group . | . . . . Highest-Rated Group . | . . . . Highest-Rated Ally . | . . . . Total Orders . | . . . . Ally Attacks . | . . . . Total Damage . | . . . . Kills . | . . . . Allies Corrupted . | . . . . Allies Melted . | . . . . Intel | -11 -10 -9 -8 ------- Run | Scr Mat Mat Mat Robot Analysis Total . | . . . . Derelict Logs Recovered . | . . . . Drone Launches . | . . . . Drone Recoveries . | . . . . Exploration | -11 -10 -9 -8 ------------- Run | Scr Mat Mat Mat Turns Passed 1137 | 94 392 366 285 Spaces Moved 687 | 60 216 219 192 Core 146 | 3 . 68 75 Treads 4 | . . 4 . Legs 469 | 57 216 147 49 Wheels . | . . . . Hover . | . . . . Flight 68 | . . . 68 Fastest Speed 40 | 50 120 50 40 Average Speed 104 | 116 120 98 88 Slowest Speed 280 | 120 120 160 280 Overloaded Moves . | . . . . Propulsion Burnouts . | . . . . Robots Hopped 3 | . . . 3 Cave-ins Triggered . | . . . . Exploration Rate (%) 30 | 5 51 38 29 Regions Visited 3 Branch Regions . Pre-discovered Areas . | . . . . Known Exits Taken . | . . . . Unknown Exits Taken 3 | 1 1 1 . Scrap Searched . | . . . . Spaces Dug . | . . . . Terrain Destroyed 30 | . 3 . 27 Melee . | . . . . Projectile . | . . . . AOE 30 | . 3 . 27 Actions | -11 -10 -9 -8 --------- Run | Scr Mat Mat Mat Total 993 | 78 316 331 268 Wait 161 | 7 68 66 20 Move 678 | 59 215 218 186 Hop 3 | . . . 3 Pick Up 9 | 3 4 . 2 Fast Attach 15 | 7 1 2 5 Attach 16 | . . 11 5 Detach 6 | . 1 3 2 Swap 7 | 1 3 3 . Drop 5 | . 4 1 . Fire 86 | 1 20 22 43 Melee . | . . . . Ram 6 | . . 4 2 Kick . | . . . . Crush 1 | . . 1 . Escape Stasis . | . . . . Rewire . | . . . . Trap . | . . . . Miscellaneous . | . . . . Route ------- -11/Scrapyard -10/Materials (discovered 2 exits: *Mat / [*Min]) -9/Materials (discovered 2 exits: *Mat / [*Min]) -8/Materials History --------- Turn | Location | Event 6 | -11/Scrapyard | Discovered new exit (range 16) 95 | -11/Scrapyard | Entered Materials 182 | -10/Materials | Discovered new exit (range 5) 312 | -10/Materials | Build established: Mutant 450 | -10/Materials | Discovered new exit (range 16) 487 | -10/Materials | Entered another Materials area 487 | -9/Materials | Evolved 2 slots: Propulsion x2 552 | -9/Materials | Discovered new exit (range 14) 816 | -9/Materials | Released all parts (7) 819 | -9/Materials | Core integrity fell below 50% 837 | -9/Materials | Lost 6 parts (1p2n3w) 849 | -9/Materials | Core integrity fell below 20% 851 | -9/Materials | Discovered new exit (range 7) 853 | -9/Materials | Entered another Materials area 853 | -8/Materials | Evolved 2 slots: Propulsion x2 1084 | -8/Materials | Core integrity fell below 50% 1105 | -8/Materials | Core integrity fell below 20% 1138 | -8/Materials | Destroyed by Y-45 Defender with Heavy Assault Rifle Last Messages --------------- 01014_ R-06 Scavenger sends out distress signal. 01030_ ALERT: Hostiles spotted, dispatching reinforcements to Terminal M007. 01041_ Flight Unit destroyed. 01049_ T-07 Excavator is excavating. 01062_ ALERT: Hostiles spotted, dispatching reinforcements to Terminal M005. 01068_ S-10 Pest destroyed. 01091_ Enh. Autogun destroyed. 01093_ Destroyed Flight Unit. 01093_ S-10 Pest destroyed. 01095_ G-47 Trooper destroyed. 01097_ W-25 Informer sends out distress signal. 01097_ G-47 Trooper destroyed. 01097_ Destroyed Lgt. Ion Engine. 01099_ M-13 Machinist destroyed. 01101_ Missile Launcher destroyed. 01119_ Y-45 Defender destroyed. 01135_ Enh. Autogun destroyed. 01136_ Repair Station disabled. Map ----- +----------------------------------------------------+ | ????????????????????????????? | | ????????????????????????????? | | ???????????#####????????????? | | ???????????# ????????????? | | ???????????# ????????????? | | ???????????? ????????????? | | ???????????? ????????????? | | ?????##?????# #????????????? | | ????? /?????# #????????????? | | ????" ??#### #????????????? | | ????" !?##!! #????????##### | | ? ??" ?#! ########## | | # ? =?#! "" | | # """ ?#! T | | # """ ?#! ####### ## | | # """ =# !! #????# ### # | | # # #????####?# # | | # """ % #?????????# # | | # """ % #?????????# | | # """ ####????????# | | # !????????#### | | ?### """ ??????????? | | ????# [ """ !???????????? | | ????# *[! """?????????????? | | ???###!%% # ????????????? | | ???#@Y[![=# """ ????????????? | | ??# Y [ # """ ???????????? | | ??## "" """ ???????????? | | ???#"R ] # ??????????? | | ???#""" ########??????????? | | ???# ! #?????????????????? | | ???########?????????????????? | | | | | | | | | | | | | | | | | | | | | | | | | | | | | | | | | | | | | +----------------------------------------------------+ Best States ------------- Heat Dissipation 31 Energy Generation 12 Energy Capacity 265 Matter Stores 300 Matter Capacity 300 Sight Range 20 Terrain Scan Density 10 Evasion (%) 62 Recoil Reduction 2 Item Schematics ----------------- None Robot Schematics ------------------ None Fabricated ------------ Nothing Alien Tech Used ----------------- None Achievements -------------- None Challenges ------------ None Game ------ Seed ActuatorLargeLance Manual? 0 Play Time 00:22:05 Cumulative 32.1 hours Start 2020.09.11 @ 21:29:10 End 2020.09.11 @ 21:54:59 Sessions 1 Manual Loads 0 Difficulty Rogue Special Mode None Game No. 69 Rogue 69 Adventurer 0 Explorer 0 Win Type - Total 0 Types 0/0/0/0/0/0/0 Lore% 23 Gallery% 35 Achievement% 28 Wizard Run 0 Options --------- ASCII 0 Keyboard 1 Movement Numpad Keybinds 0 Fullscreen 2 Font 18/Terminus Map View 76x50 Tactical HUD 1 Map Filters NONE Filters NONE Steam 1 RUN: e42246c8-8450-4058-bbdb-07b0605c110f